bitfinex/quotes_ETHUSD_20250406
["timestamp","ask_amount","ask_price","bid_price","bid_amount"]
[1743912130976,3.86804,1809.7,1809.6,2.76520667]
[1743912131267,6.40185272,1809.7,1809.6,2.76520667]
[1743912132060,7.15455272,1809.7,1809.6,2.76520667]
[1743912135268,3.86868,1809.4,1809.3,0.17285685]
[1743912135474,7.15519272,1809.4,1809.3,0.17285685]
[1743912135651,3.86892,1809.3,1809.1,0.27285685]
[1743912136563,3.86892,1809.3,1809.2,0.12510545]
[1743912136743,3.86892,1809.3,1809.1,0.27285685]
[1743912136943,3.86892,1809.3,1809.2,0.12510545]
[1743912137144,3.86892,1809.3,1809.1,0.27285685]
[1743912137482,3.86892,1809.3,1809.2,0.12510545]
[1743912137788,3.86892,1809.3,1809.1,0.27285685]
[1743912138157,6.40292272,1809.2,1809.1,0.27285685]
[1743912138489,6.40292272,1809.2,1809.1,0.1]
[1743912139086,7.15562272,1809.2,1809.1,0.1]
[1743912139485,7.56538123,1809.2,1809.1,0.1]
[1743912141658,5.03156851,1809.2,1809.1,0.1]
[1743912141859,6.45484371,1809.2,1809.1,0.1]
[1743912143868,6.45484371,1809.2,1809.1,0.22748603]
[1743912145777,5.70214371,1809.2,1809.1,0.22748603]
[1743912146858,1.83303371,1809.2,1809.1,0.22748603]
[1743912147059,0.40975851,1809.2,1809.1,0.99358603]
[1743912147269,8.09833218,1809.5,1809.1,0.99358603]
[1743912147489,3.86869,1809.4,1809.1,0.99358603]
[1743912147687,3.86869,1809.4,1809.1,0.8661]
[1743912147855,5.10670384,1809.4,1809.1,0.8661]
[1743912148360,3.86894,1809.3,1809.1,0.8661]
[1743912148570,8.09879218,1809.3,1809.1,0.8661]
[1743912148770,8.09879218,1809.3,1809.2,0.12748603]
[1743912149092,4.22985218,1809.3,1809.1,0.8661]
[1743912149456,4.22985218,1809.3,1809.2,0.12748603]
[1743912149655,9.03239778,1809.3,1809.2,0.12748603]
[1743912149871,9.03239778,1809.3,1809.1,0.8661]
[1743912150079,9.03239778,1809.3,1809.2,0.12748603]
[1743912150503,9.03239778,1809.3,1809.1,0.8661]
[1743912150680,9.03239778,1809.3,1809.2,0.12748603]
[1743912151083,3.86911,1809.2,1809.1,0.1]
[1743912151294,0.90323978,1809.2,1809.1,0.1]
[1743912151489,3.8687,1809.4,1809.1,0.8661]
[1743912151693,3.8687,1809.4,1809.1,4.86289603]
[1743912152705,3.8687,1809.4,1809.1,0.99358603]
[1743912156276,3.8689,1809.3,1809.1,0.99358603]
[1743912158107,8.09875218,1809.3,1809.1,0.22748603]
[1743912158312,11.96780218,1809.3,1809.1,0.22748603]
[1743912158809,13.1645824,1809.3,1809.1,0.22748603]
[1743912159410,3.86911,1809.2,1809.1,0.22748603]
[1743912159615,4.63181,1809.2,1809.1,0.22748603]
[1743912161029,5.4266324,1809.3,1809.1,0.22748603]
[1743912161226,5.4266324,1809.3,1809.1,0.97878603]
[1743912161227,1.19678022,1809.3,1809.1,0.97878603]
[1743912161518,3.86871,1809.4,1809.1,0.97878603]
[1743912161993,8.09856218,1809.4,1809.1,0.97878603]
[1743912162823,8.09856218,1809.4,1809.2,0.17288839]
[1743912163022,8.09856218,1809.4,1809.3,0.12859326]
[1743912163594,8.09856218,1809.4,1809.1,0.8513]
[1743912163793,8.09856218,1809.4,1809.2,0.12859326]
[1743912163992,9.33657802,1809.4,1809.1,0.8513]
[1743912164225,9.33657802,1809.4,1809.2,0.12859326]
[1743912164423,9.33657802,1809.4,1809.1,0.8513]
[1743912164598,9.33657802,1809.4,1809.2,0.12859326]
[1743912164913,9.33657802,1809.4,1809.1,0.8513]
[1743912165122,9.33657802,1809.4,1809.3,0.12851018]
[1743912165322,9.33657802,1809.4,1809.1,0.8513]
[1743912165535,9.33657802,1809.4,1809.3,0.12851018]
[1743912165702,13.20542802,1809.4,1809.1,0.8513]
[1743912165901,13.20542802,1809.4,1809.3,0.12851018]
[1743912166105,13.20542802,1809.4,1809.2,0.17288708]
[1743912166354,13.20542802,1809.4,1809.3,0.12851018]
[1743912166933,13.20542802,1809.4,1809.1,0.8513]
[1743912167133,13.20542802,1809.4,1809.3,0.12851018]
[1743912167639,13.20542802,1809.4,1809.1,0.8513]
[1743912167803,13.20542802,1809.4,1809.2,0.12851018]
[1743912167999,13.20542802,1809.4,1809.1,0.8513]
[1743912168203,13.20542802,1809.4,1809.2,0.12851018]
[1743912168415,13.20542802,1809.4,1809.1,0.8513]
[1743912168618,13.20542802,1809.4,1809.2,0.12851018]
[1743912168914,13.20542802,1809.4,1809.1,0.8513]
[1743912169437,13.20542802,1809.4,1809.2,0.30140115]
[1743912169737,13.20542802,1809.4,1809.2,0.12851018]
[1743912170042,13.20542802,1809.4,1809.1,0.8513]
[1743912170237,13.20542802,1809.4,1809.2,0.12851018]
[1743912170406,13.20542802,1809.4,1809.1,0.8513]
[1743912170606,9.33657802,1809.4,1809.2,0.12851018]
[1743912170803,5.46786802,1809.4,1809.1,4.72059]
[1743912171003,0.41311624,1809.5,1809.3,0.8271]
[1743912171323,3.86819,1809.7,1809.3,4.69591]
[1743912171526,3.86819,1809.7,1809.4,0.30129374]
[1743912172130,3.86819,1809.7,1809.5,0.17286663]
[1743912172507,3.86819,1809.7,1809.3,4.69591]
[1743912172704,3.86819,1809.7,1809.6,0.12842711]
[1743912172944,3.86819,1809.7,1809.3,4.69591]
[1743912173110,3.86819,1809.7,1809.6,0.12842711]
[1743912173312,3.86819,1809.7,1809.3,4.69591]
[1743912173831,4.28285106,1809.7,1809.4,0.30128833]
[1743912174138,4.28285106,1809.7,1809.5,0.17286122]
[1743912174338,8.15108106,1809.7,1809.5,0.17286122]
[1743912174536,3.86825,1809.6,1809.5,0.17286122]
[1743912174718,3.86825,1809.6,1809.3,4.69591]
[1743912175044,3.86825,1809.6,1809.4,0.17286345]
[1743912175449,3.86825,1809.6,1809.5,0.17286345]
[1743912176851,8.09810218,1809.6,1809.5,0.17286345]
[1743912177017,8.88070218,1809.6,1809.5,0.17286345]
[1743912177212,8.88070218,1809.6,1809.3,0.17286345]
[1743912177436,3.86854,1809.5,1809.3,0.17286345]
[1743912178030,3.86854,1809.5,1809.4,0.17286345]
[1743912180324,8.09810218,1809.6,1809.4,0.17286345]
[1743912180557,3.86825,1809.6,1809.2,8.56517]
[1743912180738,4.28271106,1809.7,1809.4,0.8037]
[1743912180935,0.41466106,1809.7,1809.5,0.17285922]
[1743912181136,18.3089749,1810.0,1809.6,8.5401]
[1743912181137,9.83153272,1810.0,1809.6,8.5401]
[1743912181322,5.96412272,1810.0,1809.7,4.04080922]
[1743912181542,9.83088272,1810.3,1809.8,4.67151]
[1743912181741,3.86697,1810.2,1809.8,4.67151]
[1743912181948,8.09682218,1810.2,1809.9,0.29998509]
[1743912182441,8.09682218,1810.2,1809.9,0.12712587]
[1743912182631,8.09682218,1810.2,1809.8,4.67151]
[1743912182959,3.86697,1810.2,1809.9,0.12709819]
[1743912183256,3.86697,1810.2,1809.8,4.67151]
[1743912183449,4.27333633,1810.2,1809.9,0.12709819]
[1743912183648,4.27333633,1810.2,1809.8,4.67151]
[1743912183849,8.14048633,1810.2,1809.9,0.12709819]
[1743912184051,8.14048633,1810.2,1809.8,4.67151]
[1743912184365,4.27333633,1810.2,1809.9,0.12709819]
[1743912184566,8.14046633,1810.2,1809.9,0.12709819]
[1743912184867,8.14046633,1810.2,1810.0,0.12709819]
[1743912185163,8.14046633,1810.2,1809.8,5.525464]
[1743912185659,8.14046633,1810.2,1809.9,0.12709819]
[1743912185853,8.14047633,1810.2,1809.8,5.525464]
[1743912186070,4.27333633,1810.2,1809.9,0.67964459]
[1743912190776,3.86729,1810.1,1809.9,0.12709819]
[1743912191065,3.86729,1810.1,1809.8,1.657654]
[1743912191359,3.86729,1810.1,1809.9,0.12709819]
[1743912191762,3.86729,1810.1,1809.8,1.657654]
[1743912192270,4.27333633,1810.2,1809.9,0.12590802]
[1743912192470,8.14046633,1810.2,1809.8,5.525454]
[1743912192767,8.14046633,1810.2,1809.9,0.12590802]
[1743912193162,8.14046633,1810.2,1809.8,5.525454]
[1743912193346,8.14046633,1810.2,1810.0,0.12590802]
[1743912193538,8.14046633,1810.2,1809.8,4.6715]
[1743912193739,8.14046633,1810.2,1810.1,0.12590802]
[1743912193969,3.86719,1810.1,1809.8,4.6715]
[1743912196051,4.27333633,1810.2,1809.8,4.6715]
[1743912196450,4.27333633,1810.2,1809.9,0.12590802]
[1743912196660,8.14047633,1810.2,1809.8,4.6715]
[1743912196867,4.27333633,1810.2,1809.9,0.12590802]
[1743912197073,3.86722,1810.1,1809.8,4.6715]
[1743912197274,3.86722,1810.1,1809.9,0.12590802]
[1743912197587,4.27333633,1810.2,1809.8,4.6715]
[1743912197787,4.27333633,1810.2,1810.0,0.12590802]
[1743912197988,4.27333633,1810.2,1809.8,4.6715]
[1743912198463,4.27333633,1810.2,1809.9,0.12590802]
[1743912198640,4.27333633,1810.2,1809.8,4.6715]
[1743912198840,4.27333633,1810.2,1809.9,0.12590802]
[1743912199041,4.27333633,1810.2,1809.8,4.6715]
[1743912199240,3.86719,1810.1,1809.9,0.12590802]
[1743912199442,3.86702,1810.2,1809.8,8.53918]
[1743912199676,3.86702,1810.2,1809.9,0.12590802]
[1743912199876,3.86702,1810.2,1809.8,5.525298]
[1743912200079,3.86702,1810.2,1809.9,0.12590802]
[1743912200271,3.86702,1810.2,1809.8,5.525298]
[1743912200469,3.86702,1810.2,1809.9,0.12590802]
[1743912200780,3.86702,1810.2,1809.8,4.67138]
[1743912200973,3.86702,1810.2,1810.0,0.12590802]
[1743912201173,4.27197031,1810.2,1809.8,4.67138]
[1743912201376,4.27197031,1810.2,1810.1,0.12590802]
[1743912201680,8.13910031,1810.2,1810.1,0.12590802]
[1743912201880,8.13910031,1810.2,1809.8,4.67138]
[1743912202068,8.13910031,1810.2,1809.9,0.12590802]
[1743912202269,8.13910031,1810.2,1809.8,4.67138]
[1743912202467,8.13910031,1810.2,1809.9,0.12590802]
[1743912202468,4.27197031,1810.2,1809.9,0.12590802]
[1743912202643,0.40495031,1810.2,1809.8,4.67138]
[1743912202848,9.83088272,1810.3,1809.9,7.86098802]
[1743912203674,9.83088272,1810.3,1809.9,3.99338802]
[1743912204679,5.96412272,1810.3,1810.0,0.7573]
[1743912204885,0.41200085,1810.4,1810.2,0.7573]
[1743912205058,3.86613,1810.6,1810.3,0.1249117]
[1743912205264,4.63061,1810.8,1810.3,3.9915117]
[1743912205465,4.63061,1810.8,1810.3,4.46639287]
[1743912205674,4.63061,1810.8,1810.4,4.62383]
[1743912205855,4.63061,1810.8,1810.5,0.12460734]
[1743912206201,8.49648,1810.8,1810.5,0.12460734]
[1743912207189,3.86594,1810.7,1810.5,0.12460734]
[1743912208361,3.86612,1810.6,1810.2,4.62426]
[1743912208681,4.28910673,1810.6,1810.3,0.12460734]
[1743912208900,4.28910673,1810.6,1810.3,0.29737857]
[1743912209301,4.28910673,1810.6,1810.4,0.17277123]
[1743912209454,0.42298673,1810.6,1810.4,0.17277123]
[1743912209758,3.86594,1810.7,1810.4,0.17277123]
[1743912209965,4.63059,1810.8,1810.5,0.12460734]
[1743912210155,3.86569,1810.8,1810.5,0.12460734]
[1743912212355,8.09533218,1810.9,1810.5,3.99085734]
[1743912212588,3.86579,1810.8,1810.5,0.12460734]
[1743912212788,4.27840839,1810.8,1810.5,0.12460734]
[1743912213061,8.14425839,1810.8,1810.5,0.12460734]
[1743912213662,4.27840839,1810.8,1810.5,0.12460734]
[1743912216591,8.09584218,1810.7,1810.5,0.12460734]
[1743912217571,8.09584218,1810.7,1810.3,8.97774]
[1743912218094,8.09584218,1810.7,1810.4,0.12333476]
[1743912218266,8.09584218,1810.7,1810.3,8.97774]
[1743912218467,8.09584218,1810.7,1810.4,0.12333476]
[1743912218691,8.09584218,1810.7,1810.3,8.97774]
[1743912218996,8.09584218,1810.7,1810.4,0.12333476]
[1743912219363,8.09584218,1810.7,1810.3,5.111]
[1743912219564,8.09584218,1810.7,1810.5,0.12333476]
[1743912219785,3.86612,1810.6,1810.3,5.111]
[1743912224501,3.86642,1810.5,1810.3,5.111]
[1743912225697,7.73291,1810.5,1810.2,0.7575]
[1743912225910,3.86657,1810.4,1810.1,5.111]
[1743912226109,3.86657,1810.4,1810.2,0.17278531]
[1743912226517,3.86657,1810.4,1810.3,0.12333476]
[1743912227087,3.86657,1810.4,1810.1,5.111]
[1743912227287,3.86657,1810.4,1810.2,0.12333476]
[1743912227488,3.86657,1810.4,1810.1,5.111]
[1743912227687,3.86657,1810.4,1810.2,0.12333476]
[1743912227886,3.86657,1810.4,1810.1,5.111]
[1743912228086,3.86657,1810.4,1810.2,0.12333476]
[1743912228286,3.86657,1810.4,1810.2,0.17278694]
[1743912228487,3.86657,1810.4,1810.3,0.12333476]
[1743912229110,3.86657,1810.4,1810.1,5.111]
[1743912229309,8.09623218,1810.5,1810.3,0.12333476]
[1743912229496,9.3703094,1810.5,1810.1,5.111]
[1743912229784,8.09623218,1810.5,1810.2,0.17278292]
[1743912229989,8.09623218,1810.5,1810.2,0.29611768]
[1743912230606,8.09623218,1810.5,1810.3,0.17278292]
[1743912230981,8.09623218,1810.5,1810.4,0.12355609]
[1743912231379,8.09623218,1810.5,1810.1,8.97817]
[1743912231584,8.09623218,1810.5,1810.4,0.12355609]
[1743912231776,3.86654,1810.4,1810.2,0.17278504]
[1743912232002,4.63144,1810.4,1810.2,0.17278504]
[1743912232314,4.63144,1810.4,1810.1,5.111]
[1743912232910,4.63144,1810.4,1810.1,8.97817]
[1743912233115,10.1351994,1810.5,1810.1,8.97817]
[1743912233311,10.1351994,1810.5,1810.2,0.17278785]
[1743912233718,10.1351994,1810.5,1810.3,0.17278785]
[1743912234419,10.1351994,1810.5,1810.1,8.97817]
[1743912234589,8.86112218,1810.5,1810.2,0.17278751]
[1743912235222,8.86112218,1810.5,1810.3,0.17278751]
[1743912235919,8.86112218,1810.5,1810.1,8.97817]
[1743912236419,8.86112218,1810.5,1810.2,0.1727847]
[1743912236620,0.7649,1810.5,1810.2,4.0397347]
[1743912236799,3.86613,1810.6,1810.3,0.1727847]
[1743912237323,7.73243,1810.6,1810.4,0.1727847]
[1743912237524,9.60156049,1810.6,1810.2,4.64625]
[1743912237693,7.73243,1810.6,1810.2,4.64625]
[1743912237893,3.86636,1810.5,1810.2,0.7793]
[1743912238099,3.86636,1810.5,1810.3,0.17278134]
[1743912238420,3.86636,1810.5,1810.2,0.7793]
[1743912239495,8.09621218,1810.5,1810.1,5.8744]
[1743912239696,7.20986726,1810.4,1810.2,0.17278895]
[1743912240287,3.34329726,1810.4,1810.3,0.17278895]
[1743912240525,2.53449726,1810.4,1810.3,0.17278895]
[1743912241597,2.53449726,1810.4,1810.3,0.29642796]
[1743912242727,7.73241,1810.6,1810.3,0.29642796]
[1743912242926,2.53449726,1810.5,1810.3,0.12363901]
[1743912243427,2.53449726,1810.5,1810.4,0.17277748]
[1743912244121,2.53449726,1810.5,1810.4,0.29641649]
[1743912249129,3.86613,1810.6,1810.4,0.29641649]
[1743912249327,2.53449726,1810.6,1810.4,4.16293649]
[1743912249526,2.53449726,1810.6,1810.5,0.17277748]
[1743912249730,2.53449726,1810.6,1810.5,0.29510057]
[1743912252517,2.53449726,1810.6,1810.5,0.71125663]
[1743912252703,2.53449726,1810.6,1810.5,5.35988663]
[1743912253329,2.94711565,1810.8,1810.5,5.35988663]
[1743912253701,2.94711565,1810.8,1810.6,0.17277748]
[1743912254233,5.94711565,1810.8,1810.7,0.12232309]
[1743912254533,5.94711565,1810.8,1810.5,4.64863]
[1743912255024,5.94711565,1810.8,1810.6,0.12232309]
[1743912255335,9.81290565,1810.8,1810.6,0.12232309]
[1743912255734,9.81290565,1810.8,1810.5,0.7823]
[1743912257736,9.81290565,1810.8,1810.6,0.12232309]
[1743912258934,5.94711565,1810.8,1810.6,0.12232309]
[1743912259536,0.41261839,1810.8,1810.6,4.4653864]
[1743912259707,2.53449726,1810.9,1810.6,4.4653864]
[1743912259909,6.39997726,1810.9,1810.6,0.5994064]
[1743912261840,6.39997726,1810.9,1810.6,0.12232309]
[1743912262938,2.53449726,1810.9,1810.7,3.86588]
[1743912263143,2.95025871,1811.0,1810.7,4.68108]
[1743912263331,2.95025871,1811.0,1810.8,0.29370534]
[1743912264035,2.95025871,1811.0,1810.8,0.12096772]
[1743912270859,6.81551871,1811.0,1810.8,0.12096772]
[1743912271660,2.95025871,1811.0,1810.8,0.12096772]
[1743912277859,2.95025871,1811.0,1810.8,3.98664772]
[1743912278063,2.95025871,1811.0,1810.8,4.85340849]
[1743912279354,2.95025871,1811.0,1810.8,0.98772849]
[1743912279543,2.95025871,1811.0,1810.8,0.12096772]
[1743912283243,0.41576145,1811.0,1810.8,0.12096772]
[1743912283549,2.53449726,1810.9,1810.8,0.12096772]
[1743912283771,2.53449726,1810.9,1810.8,0.29370763]
[1743912293067,2.53449726,1810.9,1810.8,4.15939763]
[1743912293996,2.53449726,1810.9,1810.8,0.29370763]
[1743912298702,2.53449726,1810.9,1810.8,4.15939763]
[1743912299803,0.41576145,1811.0,1810.8,4.15939763]
[1743912300582,0.41576145,1811.0,1810.9,0.17273991]
[1743912300901,0.41576145,1811.0,1810.9,0.29238033]
[1743912302383,0.41576145,1811.0,1810.9,4.15786033]
[1743912302588,2.53449726,1811.2,1810.9,5.76540236]
[1743912302905,2.53449726,1811.2,1811.0,0.17273991]
[1743912303104,2.53449726,1811.2,1811.1,0.11955747]
[1743912303671,2.53449726,1811.2,1810.9,4.67068]
[1743912303871,2.53449726,1811.2,1811.0,0.11955747]
[1743912304873,2.94912344,1811.2,1811.0,0.11955747]
[1743912306509,2.94912344,1811.2,1810.9,4.67068]
[1743912306720,2.94912344,1811.2,1811.0,0.75903734]
[1743912306881,2.94912344,1811.2,1811.0,0.29196934]
[1743912307082,2.94912344,1811.2,1811.0,0.17271596]
[1743912307692,2.94912344,1811.2,1810.9,4.67068]
[1743912308013,2.94912344,1811.2,1811.0,0.11925338]
[1743912308416,2.94912344,1811.2,1810.9,4.67056]
[1743912308582,2.94912344,1811.2,1810.9,5.524185]
[1743912308782,2.94912344,1811.2,1811.0,0.2919699]
[1743912309414,2.94912344,1811.2,1811.0,0.11925338]
[1743912316591,0.41462618,1811.2,1811.0,3.98446338]
[1743912316791,2.53449726,1811.2,1811.0,3.98446338]
[1743912317011,2.53449726,1811.4,1811.1,4.69636]
[1743912317215,2.94887014,1811.4,1811.3,3.86462]
[1743912317518,2.53449726,1811.6,1811.4,3.86433]
[1743912317733,8.49861998,1811.8,1811.5,4.69551]
[1743912317929,12.36225998,1811.8,1811.6,0.11800949]
[1743912319082,12.77269082,1811.8,1811.6,0.11800949]
[1743912320342,16.63641082,1811.8,1811.6,0.11800949]
[1743912320840,12.77269082,1811.8,1811.6,0.11800949]
[1743912322097,16.63643082,1811.8,1811.6,0.11800949]
[1743912322322,12.77269082,1811.8,1811.6,0.11800949]
[1743912322525,6.37455356,1811.8,1811.6,0.11800949]
[1743912322825,8.90905082,1811.8,1811.6,4.46325944]
[1743912323627,8.90905082,1811.8,1811.6,0.59935944]
[1743912325927,6.37455356,1811.8,1811.7,0.789]
[1743912326129,6.37455356,1811.8,1811.7,0.90438452]
[1743912327236,18.49848007,1811.8,1811.7,0.11538452]
[1743912327608,4.64167,1811.4,1811.1,0.789]
[1743912327813,2.53449726,1811.2,1811.1,0.17269367]
[1743912328437,2.53449726,1811.2,1811.0,8.97226]
[1743912328605,2.53449726,1811.2,1811.0,9.948386]
[1743912331839,2.53449726,1811.2,1811.1,0.36168258]
[1743912335539,4.28387397,1811.3,1811.1,0.36168258]
[1743912352263,4.28387397,1811.3,1811.1,0.53438831]
[1743912352562,0.41914397,1811.3,1811.1,0.53438831]
[1743912352770,7.17616726,1811.4,1811.1,0.53438831]
[1743912353464,7.17616726,1811.4,1811.1,0.36168258]
[1743912353763,11.04072726,1811.4,1811.1,0.36168258]
[1743912354264,3.86463,1811.3,1811.1,0.36168258]
[1743912355136,8.15119329,1811.3,1811.1,0.36168258]
[1743912355748,3.86484,1811.2,1811.1,0.36168258]
[1743912355964,3.86484,1811.2,1811.1,0.53439291]
[1743912356354,4.28641329,1811.3,1811.1,0.53439291]
[1743912356763,8.15119329,1811.3,1811.1,0.36168258]
[1743912357673,8.15119329,1811.3,1811.2,0.17271164]
[1743912358148,8.15119329,1811.3,1811.2,0.53522142]
[1743912359678,9.29748235,1811.3,1811.2,0.53522142]
[1743912360045,9.29748235,1811.3,1811.2,0.36250978]
[1743912360444,9.29748235,1811.3,1810.9,0.789]
[1743912360643,2.53449726,1811.2,1810.9,0.789]
[1743912360863,6.39934726,1811.2,1811.0,0.53522466]
[1743912361376,6.39934726,1811.2,1811.1,0.17271488]
[1743912361875,6.39934726,1811.2,1811.1,0.53522466]
[1743912363274,2.53449726,1811.2,1811.1,0.53522466]
[1743912366281,4.28641329,1811.3,1811.1,0.53522466]
[1743912366882,4.28641329,1811.3,1811.2,0.17271488]
[1743912367552,4.28641329,1811.3,1811.2,0.53522466]
[1743912367754,4.28641329,1811.3,1811.2,0.17271488]
[1743912367954,4.28641329,1811.3,1811.2,0.53522466]
[1743912368150,4.28641329,1811.3,1811.2,0.17271488]
[1743912368355,4.28641329,1811.3,1811.2,0.53522466]
[1743912370584,0.42178329,1811.3,1811.2,0.53522466]
[1743912370884,3.86421,1811.5,1811.2,4.92184813]
[1743912371085,3.86421,1811.5,1811.2,4.40006466]
[1743912371248,3.86421,1811.5,1811.3,0.17271488]
[1743912371679,3.86421,1811.5,1811.1,4.68261]
[1743912372173,3.86421,1811.5,1811.2,0.36228919]
[1743912372347,3.86421,1811.5,1811.2,0.53498425]
[1743912372551,3.86391,1811.7,1811.3,8.54675]
[1743912372753,6.8084981,1811.8,1811.4,3.8643]
[1743912372970,6.8084981,1811.8,1811.5,0.36228919]
[1743912373251,10.6722181,1811.8,1811.5,0.36228919]
[1743912373475,6.39827726,1811.7,1811.5,0.36228919]
[1743912373864,6.39827726,1811.7,1811.3,4.68217]
[1743912374080,6.39827726,1811.7,1811.6,0.36228919]
[1743912374277,6.39827726,1811.7,1811.3,0.8177]
[1743912374484,2.53449726,1811.5,1811.4,0.17268623]
[1743912374983,2.53449726,1811.7,1811.4,4.03709623]
[1743912375685,2.53449726,1811.7,1811.4,3.86441]
[1743912375885,2.53449726,1811.7,1811.5,5.068311]
[1743912376394,2.53449726,1811.7,1811.6,0.36228919]
[1743912385903,2.9449281,1811.8,1811.7,0.7626]
[1743912386075,2.53449726,1811.8,1811.7,4.62637]
[1743912386996,2.53449726,1811.8,1811.7,4.98664655]
[1743912387335,0.1,1811.9,1811.8,0.7626]
[1743912387480,0.1,1811.9,1811.8,4.62616]
[1743912387816,0.1,1811.9,1811.8,5.15895011]
[1743912397536,0.1,1811.9,1811.8,0.36016629]
[1743912398714,0.1,1811.9,1811.8,4.22372629]
[1743912399287,0.1,1811.9,1811.8,5.59815197]
[1743912399488,0.1,1811.9,1811.8,6.30556092]
[1743912400121,0.1,1811.9,1811.8,6.3607452]
[1743912400420,0.1,1811.9,1811.8,6.47817478]
[1743912404494,0.1,1811.9,1811.8,4.39634015]
[1743912404928,4.3153419,1811.9,1811.8,0.36016629]
[1743912405530,8.1786819,1811.9,1811.8,0.36016629]
[1743912405901,8.9778819,1811.9,1811.8,0.36016629]
[1743912406311,8.9778819,1811.9,1811.5,9.74426]
[1743912406512,8.9778819,1811.9,1811.8,0.35843038]
[1743912406724,8.9778819,1811.9,1811.6,0.17264632]
[1743912406929,8.9778819,1811.9,1811.8,0.35787906]
[1743912407125,8.9778819,1811.9,1811.6,0.17264632]
[1743912407329,8.9778819,1811.9,1811.8,0.35787906]
[1743912407503,8.9778819,1811.9,1811.6,0.17264632]
[1743912407704,8.9778819,1811.9,1811.8,0.35787906]
[1743912408022,9.39406528,1811.9,1811.8,0.35807193]
[1743912408225,9.39406528,1811.9,1811.6,0.17264632]
[1743912408429,9.39406528,1811.9,1811.7,0.35804438]
[1743912411943,8.9778819,1811.9,1811.7,0.35804438]
[1743912412866,9.40143869,1811.9,1811.5,13.60832]
[1743912413139,9.40143869,1811.9,1811.6,0.35807193]
[1743912415023,5.53809869,1811.9,1811.6,4.22203193]
[1743912415223,5.53809869,1811.9,1811.6,0.35807193]
[1743912415423,13.26495869,1811.9,1811.6,0.35807193]
[1743912415632,4.2153419,1811.7,1811.6,0.35807193]
[1743912415836,9.68471209,1811.7,1811.3,8.96962]
[1743912416038,9.68471209,1811.7,1811.4,0.50140746]
[1743912416039,8.8768119,1811.7,1811.4,0.50140746]
[1743912416628,8.8768119,1811.7,1811.5,0.1726662]
[1743912417144,8.8768119,1811.7,1811.6,0.32874126]
[1743912417915,8.8768119,1811.7,1811.4,0.1726662]
[1743912418116,8.8768119,1811.7,1811.6,0.32874126]
[1743912418316,8.8768119,1811.7,1811.3,12.83411]
[1743912418547,8.8768119,1811.7,1811.6,0.32874126]
[1743912418746,3.86401,1811.6,1811.3,5.105]
[1743912419051,3.86401,1811.6,1811.4,0.17267206]
[1743912419052,8.0795419,1811.5,1811.4,0.17267206]
[1743912419478,8.8772419,1811.5,1811.3,0.17267206]
[1743912419972,6.28716709,1811.5,1811.0,3.86526]
[1743912420146,6.28716709,1811.5,1810.9,4.62797]
[1743912420147,4.2153419,1811.2,1810.9,8.97047]
[1743912420542,4.2153419,1811.2,1811.0,0.17270694]
[1743912421148,4.2153419,1811.2,1811.1,0.17270694]
[1743912421546,4.2153419,1811.2,1811.1,0.30310338]
[1743912421746,0.8072,1811.3,1811.1,3.86505]
[1743912421945,4.2153419,1811.4,1811.1,3.86505]
[1743912422244,5.0225419,1811.4,1811.2,0.30310338]
[1743912424378,5.43000282,1811.4,1811.2,0.30310338]
[1743912427282,0.40746092,1811.4,1811.2,1.08110338]
[1743912427482,4.2153419,1811.5,1811.2,4.94591338]
[1743912427864,4.2153419,1811.5,1811.2,1.08110338]
[1743912428359,8.0795819,1811.5,1811.2,1.08110338]
[1743912429156,4.2153419,1811.5,1811.2,4.94592338]
[1743912429746,8.0795419,1811.5,1811.2,1.08110338]
[1743912430272,3.86445,1811.4,1811.2,0.30310338]
[1743912430473,3.86445,1811.4,1811.0,4.64833]
[1743912430673,3.86445,1811.4,1811.1,0.30310338]
[1743912432085,0.7518,1811.3,1811.1,0.30310338]
[1743912434287,4.9671419,1811.3,1811.1,0.30310338]
[1743912435180,4.2153419,1811.3,1811.1,4.16812338]
[1743912437388,4.9671419,1811.3,1811.1,4.16812338]
[1743912437687,4.9671419,1811.3,1811.1,0.30310338]
[1743912438991,8.8318019,1811.3,1811.1,0.30310338]
[1743912440160,8.8318019,1811.3,1810.9,12.83786]
[1743912440391,8.8318019,1811.3,1811.2,0.30408438]
[1743912440583,10.14206924,1811.3,1811.0,0.17270806]
[1743912440887,14.00689924,1811.3,1811.0,0.17270806]
[1743912441091,8.8831919,1811.1,1811.0,0.17270806]
[1743912441385,8.8831919,1811.1,1810.6,4.6471]
[1743912441386,3.86548,1810.9,1810.6,5.889]
[1743912441592,4.2153419,1810.8,1810.6,5.889]
[1743912443660,9.73285078,1810.8,1810.3,0.781]
[1743912443888,4.2153419,1810.6,1810.4,3.86643]
[1743912444090,4.2153419,1810.6,1810.4,4.03919489]
[1743912444588,4.2153419,1810.6,1810.4,3.86643]
[1743912445795,4.2153419,1810.6,1810.3,9.75675]
[1743912446174,4.2153419,1810.6,1810.3,10.732425]
[1743912446495,4.2153419,1810.6,1810.4,0.17276981]
[1743912448085,4.2153419,1810.6,1810.4,4.03926981]
[1743912448676,4.2153419,1810.6,1810.4,3.8665]
[1743912450900,4.2153419,1810.6,1810.3,10.732295]
[1743912451306,4.2153419,1810.6,1810.2,8.97897]
[1743912451307,4.2153419,1810.4,1810.2,8.97897]
[1743912451600,4.2153419,1810.4,1810.3,0.28102827]
[1743912452205,8.8962819,1810.4,1810.3,0.28102827]
[1743912452503,8.8962819,1810.4,1810.3,0.28401257]
[1743912452703,8.8962819,1810.4,1809.8,24.863]
[1743912452704,3.86697,1810.2,1810.1,0.17279206]
[1743912453000,8.0823119,1810.2,1810.1,0.28401257]
[1743912453202,4.68199,1810.0,1809.7,5.22904811]
[1743912453407,4.68199,1810.0,1809.6,8.98722]
[1743912453408,4.2153419,1809.8,1809.6,8.98722]
[1743912454705,4.2153419,1809.8,1809.6,7.73638]
[1743912456408,4.2153419,1809.8,1809.6,3.86816]
[1743912456792,4.2153419,1809.8,1809.6,7.7363]
[1743912459012,4.2153419,1809.8,1809.6,7.73629]
[1743912460115,4.2153419,1809.8,1809.7,3.86804]
[1743912463410,4.2153419,1810.0,1809.8,3.86769]
[1743912463597,4.2153419,1810.0,1809.8,7.73543]
[1743912463909,8.98539,1810.5,1809.8,7.73543]
[1743912463910,5.96412272,1810.7,1810.2,0.7921]
[1743912464092,10.17946462,1810.7,1810.5,3.86625]
[1743912464279,10.17946462,1810.7,1810.6,0.26861619]
[1743912464480,11.61081714,1810.7,1810.4,3.86643]
[1743912464810,7.39547524,1810.7,1810.5,0.26861619]
[1743912464993,7.39547524,1810.7,1810.5,4.13494619]